[Event "Titled Tuesday Blitz September 27 Late 2022"]
[White "Shivakumar, Shawnak"]
[Black "Djokic, Mihailo"]
[WhiteFideId "30940192"]
[BlackFideId "976440"]
[WhiteElo "1711"]
[BlackElo "2315"]
[Result "0-1"]
[Round "08"]
[TimeControl "180+1"]
[Date "2022.09.28"]
[WhiteClock "0:00:19"]
[BlackClock "0:00:05"]

1. c4 {[%clk 0:02:56]}  Nf6 {[%clk 0:02:53]} 2. Nc3 {[%clk 0:02:56]}  g6 {[%clk 0:02:43]} 3. g3 {[%clk 0:02:56]}  Bg7 {[%clk 0:02:43]} 4. Bg2 {[%clk 0:02:56]}  O-O {[%clk 0:02:43]} 5. e4 {[%clk 0:02:57]}  d6 {[%clk 0:02:43]} 6. d3 {[%clk 0:02:57]}  e5 {[%clk 0:02:44]} 7. Nge2 {[%clk 0:02:57]}  Nc6 {[%clk 0:02:43]} 8. O-O {[%clk 0:02:57]}  Nd4 {[%clk 0:02:42]} 9. h3 {[%clk 0:02:55]}  Nd7 {[%clk 0:02:42]} 10. f4 {[%clk 0:02:53]}  f5 {[%clk 0:02:39]} 11. Be3 {[%clk 0:02:48]}  Nc5 {[%clk 0:02:26]} 12. b4 {[%clk 0:02:40]}  Nce6 {[%clk 0:02:20]} 13. Rc1 {[%clk 0:02:40]}  a5 {[%clk 0:02:15]} 14. b5 {[%clk 0:02:31]}  c6 {[%clk 0:02:08]} 15. Bf2 {[%clk 0:02:25]}  Bd7 {[%clk 0:02:01]} 16. exf5 {[%clk 0:02:23]}  gxf5 {[%clk 0:01:59]} 17. bxc6 {[%clk 0:02:23]}  bxc6 {[%clk 0:01:55]} 18. fxe5 {[%clk 0:02:19]}  dxe5 {[%clk 0:01:53]} 19. Nxd4 {[%clk 0:02:19]}  exd4 {[%clk 0:01:51]} 20. Ne2 {[%clk 0:02:18]}  Rb8 {[%clk 0:01:48]} 21. Rb1 {[%clk 0:02:12]}  Qg5 {[%clk 0:01:44]} 22. Qa4 {[%clk 0:02:04]}  Rxb1 {[%clk 0:01:11]} 23. Rxb1 {[%clk 0:02:03]}  Nc5 {[%clk 0:01:03]} 24. Qa3 {[%clk 0:01:53]}  Qd2 {[%clk 0:00:35]} 25. Qxc5 {[%clk 0:01:51]}  Qxe2 {[%clk 0:00:35]} 26. Rb7 {[%clk 0:01:51]}  Be8 {[%clk 0:00:17]} 27. Rxg7+ {[%clk 0:01:31]}  Kxg7 {[%clk 0:00:17]} 28. Bxd4+ {[%clk 0:01:31]}  Kg8 {[%clk 0:00:17]} 29. Qa7 {[%clk 0:01:16]}  Rf7 {[%clk 0:00:09]} 30. Qa8 {[%clk 0:01:11]}  f4 {[%clk 0:00:09]} 31. Be4 {[%clk 0:01:06]}  Rf8 {[%clk 0:00:04]} 32. Qb7 {[%clk 0:00:56]}  Qe1+ {[%clk 0:00:04]} 33. Kg2 {[%clk 0:00:51]}  Qxg3+ {[%clk 0:00:05]} 34. Kh1 {[%clk 0:00:50]}  Qxh3+ {[%clk 0:00:05]} 35. Kg1 {[%clk 0:00:49]}  Qg4+ {[%clk 0:00:05]} 36. Kh1 {[%clk 0:00:46]}  Bf7 {[%clk 0:00:06]} 37. Bc5 {[%clk 0:00:26]}  f3 {[%clk 0:00:05]} 38. Qb2 {[%clk 0:00:20]}  Qh5+ {[%clk 0:00:05]} 39. Kg1 {[%clk 0:00:19]}  Qxc5+ {[%clk 0:00:05]} 0-1


[Site "https://www.chess.com"]

[Event "Titled Tuesday Blitz September 27 Late 2022"]
[White "Sokolovsky, Yahli"]
[Black "Rangel, Daniel"]
[WhiteFideId "2820242"]
[BlackFideId "2124475"]
[WhiteElo "1920"]
[BlackElo "2225"]
[Result "1-0"]
[Round "08"]
[TimeControl "180+1"]
[Date "2022.09.28"]
[WhiteClock "0:01:36"]
[BlackClock "0:00:02"]

1. b3 {[%clk 0:03:00]}  Nf6 {[%clk 0:02:58]} 2. Bb2 {[%clk 0:03:01]}  g6 {[%clk 0:02:59]} 3. d4 {[%clk 0:03:01]}  Bg7 {[%clk 0:02:59]} 4. Nf3 {[%clk 0:03:02]}  O-O {[%clk 0:03:00]} 5. g3 {[%clk 0:03:02]}  b6 {[%clk 0:02:59]} 6. Bg2 {[%clk 0:03:02]}  Bb7 {[%clk 0:03:00]} 7. O-O {[%clk 0:03:03]}  c5 {[%clk 0:02:57]} 8. c4 {[%clk 0:03:02]}  cxd4 {[%clk 0:02:55]} 9. Bxd4 {[%clk 0:02:54]}  d6 {[%clk 0:02:49]} 10. Bb2 {[%clk 0:02:42]}  Nbd7 {[%clk 0:02:40]} 11. Nc3 {[%clk 0:02:30]}  Ne4 {[%clk 0:02:15]} 12. Na4 {[%clk 0:02:29]}  Ndf6 {[%clk 0:02:10]} 13. Rb1 {[%clk 0:02:19]}  Qc8 {[%clk 0:01:53]} 14. Nc3 {[%clk 0:02:16]}  a6 {[%clk 0:01:45]} 15. Qc2 {[%clk 0:02:16]}  b5 {[%clk 0:01:39]} 16. cxb5 {[%clk 0:01:59]}  axb5 {[%clk 0:01:35]} 17. Rfc1 {[%clk 0:02:00]}  Nxc3 {[%clk 0:01:29]} 18. Bxc3 {[%clk 0:01:50]}  Be4 {[%clk 0:01:25]} 19. Qd1 {[%clk 0:01:49]}  Bxb1 {[%clk 0:01:15]} 20. Bxf6 {[%clk 0:01:49]}  Bxf6 {[%clk 0:00:11]} 21. Rxc8 {[%clk 0:01:49]}  Rfxc8 {[%clk 0:00:09]} 22. Qxb1 {[%clk 0:01:49]}  Rc5 {[%clk 0:00:06]} 23. Ne1 {[%clk 0:01:46]}  Rac8 {[%clk 0:00:05]} 24. Nd3 {[%clk 0:01:47]}  Rc2 {[%clk 0:00:04]} 25. Bf3 {[%clk 0:01:46]}  R8c3 {[%clk 0:00:02]} 26. Kg2 {[%clk 0:01:44]}  Bd4 {[%clk 0:00:02]} 27. a4 {[%clk 0:01:35]}  bxa4 {[%clk 0:00:02]} 28. bxa4 {[%clk 0:01:36]} 1-0


[Site "https://www.chess.com"]

[Event "Titled Tuesday Blitz September 27 Late 2022"]
[White "Tristan, Leonardo"]
[Black "Ekdyshman, Mikhail"]
[WhiteFideId "113816"]
[BlackFideId "4149416"]
[WhiteElo "2404"]
[BlackElo "2146"]
[Result "1-0"]
[Round "08"]
[TimeControl "180+1"]
[Date "2022.09.28"]
[WhiteClock "0:00:45"]
[BlackClock "0:00:07"]

1. d4 {[%clk 0:03:00]}  Nf6 {[%clk 0:02:57]} 2. Nf3 {[%clk 0:03:01]}  e6 {[%clk 0:02:57]} 3. Bf4 {[%clk 0:03:01]}  Be7 {[%clk 0:02:56]} 4. e3 {[%clk 0:03:02]}  O-O {[%clk 0:02:57]} 5. h3 {[%clk 0:03:02]}  d6 {[%clk 0:02:51]} 6. Nbd2 {[%clk 0:03:02]}  Nbd7 {[%clk 0:02:51]} 7. Bd3 {[%clk 0:03:02]}  Re8 {[%clk 0:02:51]} 8. O-O {[%clk 0:03:03]}  Bf8 {[%clk 0:02:52]} 9. Bh2 {[%clk 0:03:03]}  b6 {[%clk 0:02:51]} 10. c3 {[%clk 0:03:03]}  Bb7 {[%clk 0:02:52]} 11. a4 {[%clk 0:03:03]}  a6 {[%clk 0:02:51]} 12. e4 {[%clk 0:03:01]}  e5 {[%clk 0:02:51]} 13. d5 {[%clk 0:03:00]}  g6 {[%clk 0:02:50]} 14. Re1 {[%clk 0:03:00]}  Nh5 {[%clk 0:02:50]} 15. b4 {[%clk 0:02:59]}  Bh6 {[%clk 0:02:49]} 16. a5 {[%clk 0:02:55]}  Bxd2 {[%clk 0:02:33]} 17. Nxd2 {[%clk 0:02:54]}  Qg5 {[%clk 0:02:31]} 18. Kh1 {[%clk 0:02:51]}  f5 {[%clk 0:02:27]} 19. axb6 {[%clk 0:02:45]}  Nxb6 {[%clk 0:02:25]} 20. c4 {[%clk 0:02:36]}  f4 {[%clk 0:02:23]} 21. c5 {[%clk 0:02:33]}  Nxd5 {[%clk 0:02:01]} 22. exd5 {[%clk 0:02:33]}  Bxd5 {[%clk 0:02:02]} 23. Be4 {[%clk 0:02:31]}  c6 {[%clk 0:01:49]} 24. Qf3 {[%clk 0:02:09]}  Nf6 {[%clk 0:01:45]} 25. Bxd5+ {[%clk 0:02:03]}  cxd5 {[%clk 0:01:46]} 26. cxd6 {[%clk 0:02:03]}  Qf5 {[%clk 0:01:33]} 27. g4 {[%clk 0:01:33]}  Qd7 {[%clk 0:01:03]} 28. g5 {[%clk 0:01:31]}  e4 {[%clk 0:00:36]} 29. Qb3 {[%clk 0:01:09]}  e3 {[%clk 0:00:15]} 30. fxe3 {[%clk 0:00:46]}  Qxh3 {[%clk 0:00:07]} 31. gxf6 {[%clk 0:00:45]} 1-0


[Site "https://www.chess.com"]

[Event "Titled Tuesday Blitz September 27 Late 2022"]
[White "Van Foreest, Jorden"]
[Black "Fawzy, Adham"]
[WhiteFideId "1039784"]
[BlackFideId "10613129"]
[WhiteElo "2649"]
[BlackElo "2541"]
[Result "1-0"]
[Round "08"]
[TimeControl "180+1"]
[Date "2022.09.27"]
[WhiteClock "0:01:48"]
[BlackClock "0:00:01"]

1. e4 {[%clk 0:03:00]}  c5 {[%clk 0:02:59]} 2. Nf3 {[%clk 0:03:00]}  Nc6 {[%clk 0:02:59]} 3. Bb5 {[%clk 0:02:58]}  g6 {[%clk 0:02:59]} 4. Bxc6 {[%clk 0:02:58]}  dxc6 {[%clk 0:03:00]} 5. d3 {[%clk 0:02:58]}  Bg7 {[%clk 0:03:00]} 6. h3 {[%clk 0:02:59]}  Nf6 {[%clk 0:03:01]} 7. Nc3 {[%clk 0:02:57]}  Nd7 {[%clk 0:03:01]} 8. a4 {[%clk 0:02:53]}  a5 {[%clk 0:03:01]} 9. O-O {[%clk 0:02:49]}  e5 {[%clk 0:03:00]} 10. Nh2 {[%clk 0:02:49]}  Nf8 {[%clk 0:02:59]} 11. f4 {[%clk 0:02:48]}  exf4 {[%clk 0:03:00]} 12. Bxf4 {[%clk 0:02:48]}  Ne6 {[%clk 0:03:00]} 13. Be3 {[%clk 0:02:47]}  Nd4 {[%clk 0:02:55]} 14. Qd2 {[%clk 0:02:43]}  h6 {[%clk 0:02:48]} 15. Ne2 {[%clk 0:02:38]}  Be6 {[%clk 0:02:32]} 16. Rae1 {[%clk 0:02:35]}  Qd6 {[%clk 0:02:11]} 17. Nf3 {[%clk 0:02:28]}  Nxf3+ {[%clk 0:02:02]} 18. Rxf3 {[%clk 0:02:29]}  b6 {[%clk 0:02:03]} 19. Nf4 {[%clk 0:02:26]}  O-O-O {[%clk 0:01:39]} 20. Nxe6 {[%clk 0:02:26]}  Qxe6 {[%clk 0:01:40]} 21. Ref1 {[%clk 0:02:21]}  Rd7 {[%clk 0:01:36]} 22. b3 {[%clk 0:02:21]}  h5 {[%clk 0:01:10]} 23. Bg5 {[%clk 0:02:12]}  Bd4+ {[%clk 0:01:05]} 24. Kh1 {[%clk 0:02:11]}  Re8 {[%clk 0:00:56]} 25. Qf4 {[%clk 0:02:09]}  Kb7 {[%clk 0:00:40]} 26. Qh4 {[%clk 0:02:06]}  Be5 {[%clk 0:00:31]} 27. Bf6 {[%clk 0:02:06]}  Bb8 {[%clk 0:00:31]} 28. Qf2 {[%clk 0:02:06]}  Qd6 {[%clk 0:00:29]} 29. g3 {[%clk 0:02:03]}  Qe6 {[%clk 0:00:30]} 30. Kg2 {[%clk 0:02:03]}  Bd6 {[%clk 0:00:29]} 31. Bg5 {[%clk 0:02:02]}  Rf8 {[%clk 0:00:25]} 32. Bh6 {[%clk 0:02:01]}  Rh8 {[%clk 0:00:26]} 33. Bg7 {[%clk 0:02:02]}  Rg8 {[%clk 0:00:26]} 34. Bb2 {[%clk 0:02:00]}  Rf8 {[%clk 0:00:27]} 35. Rf6 {[%clk 0:02:00]}  Qe8 {[%clk 0:00:19]} 36. Qf3 {[%clk 0:01:57]}  Be5 {[%clk 0:00:19]} 37. Bxe5 {[%clk 0:01:56]}  Qxe5 {[%clk 0:00:20]} 38. Rxg6 {[%clk 0:01:57]}  Qc3 {[%clk 0:00:16]} 39. Rf2 {[%clk 0:01:55]}  Re8 {[%clk 0:00:08]} 40. Rf6 {[%clk 0:01:54]}  Ree7 {[%clk 0:00:09]} 41. Qxh5 {[%clk 0:01:54]}  b5 {[%clk 0:00:06]} 42. axb5 {[%clk 0:01:50]}  cxb5 {[%clk 0:00:07]} 43. Qh6 {[%clk 0:01:50]}  Kb8 {[%clk 0:00:02]} 44. Rb6+ {[%clk 0:01:50]}  Rb7 {[%clk 0:00:02]} 45. Ra6 {[%clk 0:01:48]}  Kc7 {[%clk 0:00:01]} 46. Qd6+ {[%clk 0:01:48]} 1-0


[Site "https://www.chess.com"]

[Event "Titled Tuesday Blitz September 27 Late 2022"]
[White "Wieczorek, Oskar"]
[Black "Taboas Rodriguez, Daniel"]
[WhiteFideId "1133950"]
[BlackFideId "2208466"]
[WhiteElo "2302"]
[BlackElo "2429"]
[Result "1-0"]
[Round "08"]
[TimeControl "180+1"]
[Date "2022.09.27"]
[WhiteClock "0:00:38"]
[BlackClock "0:00:19"]

1. e4 {[%clk 0:03:00]}  e5 {[%clk 0:02:58]} 2. Nf3 {[%clk 0:03:00]}  Nc6 {[%clk 0:02:59]} 3. Nc3 {[%clk 0:03:01]}  Nf6 {[%clk 0:02:58]} 4. h3 {[%clk 0:03:01]}  Bb4 {[%clk 0:02:57]} 5. Nd5 {[%clk 0:03:02]}  Ba5 {[%clk 0:02:55]} 6. c3 {[%clk 0:02:56]}  d6 {[%clk 0:02:51]} 7. Qa4 {[%clk 0:02:46]}  Bd7 {[%clk 0:02:47]} 8. Bc4 {[%clk 0:02:40]}  O-O {[%clk 0:02:30]} 9. Nxf6+ {[%clk 0:02:32]}  Qxf6 {[%clk 0:02:29]} 10. d3 {[%clk 0:02:32]}  Bb6 {[%clk 0:02:28]} 11. Qd1 {[%clk 0:02:12]}  Be6 {[%clk 0:02:25]} 12. Bb3 {[%clk 0:02:06]}  Qg6 {[%clk 0:02:20]} 13. Bxe6 {[%clk 0:01:46]}  Qxg2 {[%clk 0:02:14]} 14. Rh2 {[%clk 0:01:46]}  Bxf2+ {[%clk 0:01:51]} 15. Ke2 {[%clk 0:01:46]}  Qg3 {[%clk 0:01:47]} 16. Bf5 {[%clk 0:01:25]}  Bb6 {[%clk 0:01:39]} 17. Qh1 {[%clk 0:01:01]}  Ne7 {[%clk 0:00:57]} 18. Rg2 {[%clk 0:01:00]}  Nxf5 {[%clk 0:00:57]} 19. exf5 {[%clk 0:01:01]}  Qxg2+ {[%clk 0:00:53]} 20. Qxg2 {[%clk 0:01:00]}  d5 {[%clk 0:00:54]} 21. f6 {[%clk 0:00:59]}  g6 {[%clk 0:00:53]} 22. Nxe5 {[%clk 0:00:55]}  Rfe8 {[%clk 0:00:51]} 23. d4 {[%clk 0:00:55]}  Re6 {[%clk 0:00:51]} 24. Qg5 {[%clk 0:00:56]}  Rae8 {[%clk 0:00:49]} 25. Bf4 {[%clk 0:00:52]}  c5 {[%clk 0:00:48]} 26. Be3 {[%clk 0:00:43]}  cxd4 {[%clk 0:00:35]} 27. cxd4 {[%clk 0:00:43]}  Bd8 {[%clk 0:00:35]} 28. Rf1 {[%clk 0:00:43]}  Bc7 {[%clk 0:00:31]} 29. Ng4 {[%clk 0:00:38]}  Bd6 {[%clk 0:00:20]} 30. Kd3 {[%clk 0:00:38]}  Re4 {[%clk 0:00:19]} 31. Qxd5 {[%clk 0:00:38]} 1-0


[Site "https://www.chess.com"]

[Event "Titled Tuesday Blitz September 27 Late 2022"]
[White "Zochowski, Kacper"]
[Black "Yurovskykh, Oleksandr"]
[WhiteFideId "1125494"]
[BlackFideId "14134020"]
[WhiteElo "2214"]
[BlackElo "2303"]
[Result "1/2-1/2"]
[Round "08"]
[TimeControl "180+1"]
[Date "2022.09.28"]
[WhiteClock "0:00:24"]
[BlackClock "0:00:07"]

1. Nf3 {[%clk 0:03:00]}  d5 {[%clk 0:02:59]} 2. c4 {[%clk 0:03:01]}  dxc4 {[%clk 0:02:57]} 3. g3 {[%clk 0:02:59]}  c5 {[%clk 0:02:40]} 4. Bg2 {[%clk 0:02:59]}  Nc6 {[%clk 0:02:41]} 5. O-O {[%clk 0:02:59]}  e5 {[%clk 0:02:40]} 6. Qa4 {[%clk 0:02:58]}  Bd6 {[%clk 0:02:23]} 7. Na3 {[%clk 0:02:32]}  Ne7 {[%clk 0:02:15]} 8. Nxc4 {[%clk 0:02:31]}  O-O {[%clk 0:02:14]} 9. Nxd6 {[%clk 0:02:30]}  Qxd6 {[%clk 0:02:15]} 10. b3 {[%clk 0:02:30]}  f6 {[%clk 0:02:10]} 11. Bb2 {[%clk 0:02:29]}  Be6 {[%clk 0:02:08]} 12. d3 {[%clk 0:02:28]}  Rac8 {[%clk 0:02:05]} 13. Nd2 {[%clk 0:02:24]}  b6 {[%clk 0:02:04]} 14. a3 {[%clk 0:02:18]}  Qd7 {[%clk 0:02:02]} 15. Rfe1 {[%clk 0:02:10]}  a5 {[%clk 0:01:41]} 16. Nc4 {[%clk 0:02:05]}  Rb8 {[%clk 0:01:36]} 17. Qb5 {[%clk 0:02:02]}  Nd4 {[%clk 0:01:26]} 18. Qxd7 {[%clk 0:02:01]}  Bxd7 {[%clk 0:01:27]} 19. Bxd4 {[%clk 0:01:58]}  cxd4 {[%clk 0:01:09]} 20. b4 {[%clk 0:01:58]}  a4 {[%clk 0:00:52]} 21. Rac1 {[%clk 0:01:53]}  Be6 {[%clk 0:00:38]} 22. Nd6 {[%clk 0:00:54]}  Rfd8 {[%clk 0:00:36]} 23. Rc7 {[%clk 0:00:53]}  Rxd6 {[%clk 0:00:28]} 24. Rxe7 {[%clk 0:00:53]}  Bd7 {[%clk 0:00:28]} 25. f4 {[%clk 0:00:45]}  exf4 {[%clk 0:00:19]} 26. gxf4 {[%clk 0:00:46]}  Kf8 {[%clk 0:00:19]} 27. Re4 {[%clk 0:00:44]}  Bf5 {[%clk 0:00:17]} 28. Rc1 {[%clk 0:00:42]}  Bxe4 {[%clk 0:00:18]} 29. Bxe4 {[%clk 0:00:43]}  g6 {[%clk 0:00:18]} 30. b5 {[%clk 0:00:43]}  f5 {[%clk 0:00:18]} 31. Bc6 {[%clk 0:00:43]}  Re6 {[%clk 0:00:17]} 32. Kf2 {[%clk 0:00:43]}  Rc8 {[%clk 0:00:15]} 33. Rc4 {[%clk 0:00:43]}  Rd6 {[%clk 0:00:14]} 34. Rxa4 {[%clk 0:00:42]}  Kg7 {[%clk 0:00:13]} 35. Rc4 {[%clk 0:00:43]}  Rc7 {[%clk 0:00:12]} 36. a4 {[%clk 0:00:43]}  Ra7 {[%clk 0:00:12]} 37. Rb4 {[%clk 0:00:43]}  Kf6 {[%clk 0:00:12]} 38. Rc4 {[%clk 0:00:44]}  h6 {[%clk 0:00:12]} 39. h4 {[%clk 0:00:44]}  g5 {[%clk 0:00:12]} 40. fxg5+ {[%clk 0:00:45]}  hxg5 {[%clk 0:00:13]} 41. hxg5+ {[%clk 0:00:46]}  Kxg5 {[%clk 0:00:13]} 42. Rb4 {[%clk 0:00:46]}  Kf6 {[%clk 0:00:13]} 43. Rc4 {[%clk 0:00:46]}  Ke5 {[%clk 0:00:13]} 44. Bf3 {[%clk 0:00:46]}  f4 {[%clk 0:00:12]} 45. Rb4 {[%clk 0:00:44]}  Rc7 {[%clk 0:00:10]} 46. Bc6 {[%clk 0:00:44]}  Ra7 {[%clk 0:00:10]} 47. Rc4 {[%clk 0:00:44]}  Rd8 {[%clk 0:00:09]} 48. Bf3 {[%clk 0:00:44]}  Rdd7 {[%clk 0:00:09]} 49. Rc6 {[%clk 0:00:39]}  Rd6 {[%clk 0:00:10]} 50. Rc4 {[%clk 0:00:36]}  Rdd7 {[%clk 0:00:07]} 51. Rc6 {[%clk 0:00:35]}  Rd6 {[%clk 0:00:07]} 52. Rc4 {[%clk 0:00:36]}  Rh7 {[%clk 0:00:07]} 53. Rc8 {[%clk 0:00:34]}  Ra7 {[%clk 0:00:07]} 54. Rc4 {[%clk 0:00:24]} 1/2-1/2


[Site "https://www.chess.com"]

[Event "Titled Tuesday Blitz September 27 Late 2022"]
[White "Aguilar, Juan"]
[Black "Pinheiro, Iung Alicio de O."]
[WhiteFideId "3800091"]
[BlackFideId "2104350"]
[WhiteElo "2378"]
[BlackElo "2283"]
[Result "0-1"]
[Round "09"]
[TimeControl "180+1"]
[Date "2022.09.28"]
[WhiteClock "0:00:04"]
[BlackClock "0:00:12"]

1. d4 {[%clk 0:03:00]}  Nf6 {[%clk 0:02:59]} 2. c4 {[%clk 0:03:00]}  g6 {[%clk 0:02:59]} 3. Nc3 {[%clk 0:03:00]}  Bg7 {[%clk 0:02:59]} 4. e4 {[%clk 0:03:00]}  d6 {[%clk 0:02:59]} 5. Nf3 {[%clk 0:03:00]}  O-O {[%clk 0:02:59]} 6. Be2 {[%clk 0:02:59]}  Nbd7 {[%clk 0:03:00]} 7. O-O {[%clk 0:02:56]}  e5 {[%clk 0:03:00]} 8. Re1 {[%clk 0:02:54]}  c6 {[%clk 0:02:59]} 9. Bf1 {[%clk 0:02:54]}  Qe7 {[%clk 0:02:56]} 10. d5 {[%clk 0:02:53]}  c5 {[%clk 0:02:56]} 11. h3 {[%clk 0:02:36]}  h6 {[%clk 0:02:40]} 12. g3 {[%clk 0:02:33]}  Kh7 {[%clk 0:02:10]} 13. a3 {[%clk 0:02:29]}  Ng8 {[%clk 0:01:57]} 14. b4 {[%clk 0:02:21]}  b6 {[%clk 0:01:48]} 15. Bg2 {[%clk 0:01:55]}  Ndf6 {[%clk 0:01:29]} 16. Qd3 {[%clk 0:01:51]}  Ne8 {[%clk 0:01:18]} 17. Bd2 {[%clk 0:01:48]}  Kh8 {[%clk 0:01:18]} 18. bxc5 {[%clk 0:01:38]}  bxc5 {[%clk 0:01:17]} 19. Rab1 {[%clk 0:01:37]}  f5 {[%clk 0:01:14]} 20. Nh4 {[%clk 0:01:31]}  Qf7 {[%clk 0:01:13]} 21. f4 {[%clk 0:01:04]}  exf4 {[%clk 0:00:52]} 22. exf5 {[%clk 0:00:48]}  Bxf5 {[%clk 0:00:34]} 23. Nxf5 {[%clk 0:00:47]}  Qxf5 {[%clk 0:00:31]} 24. Qxf5 {[%clk 0:00:47]}  Rxf5 {[%clk 0:00:31]} 25. gxf4 {[%clk 0:00:36]}  Bd4+ {[%clk 0:00:29]} 26. Kh1 {[%clk 0:00:35]}  g5 {[%clk 0:00:26]} 27. fxg5 {[%clk 0:00:31]}  hxg5 {[%clk 0:00:26]} 28. Be4 {[%clk 0:00:24]}  Rf2 {[%clk 0:00:25]} 29. Re2 {[%clk 0:00:22]}  Nef6 {[%clk 0:00:20]} 30. Rxf2 {[%clk 0:00:20]}  Bxf2 {[%clk 0:00:21]} 31. Rf1 {[%clk 0:00:20]}  Bd4 {[%clk 0:00:20]} 32. Bf5 {[%clk 0:00:16]}  Rb8 {[%clk 0:00:17]} 33. Nb5 {[%clk 0:00:16]}  Be5 {[%clk 0:00:17]} 34. Bxg5 {[%clk 0:00:14]}  a6 {[%clk 0:00:18]} 35. Nc7 {[%clk 0:00:13]}  Rb2 {[%clk 0:00:17]} 36. Bf4 {[%clk 0:00:12]}  Bxf4 {[%clk 0:00:16]} 37. Rxf4 {[%clk 0:00:12]}  Ne7 {[%clk 0:00:17]} 38. Be6 {[%clk 0:00:10]}  Nh5 {[%clk 0:00:17]} 39. Rf7 {[%clk 0:00:09]}  Ng6 {[%clk 0:00:16]} 40. Bf5 {[%clk 0:00:05]}  Ng3+ {[%clk 0:00:15]} 41. Kg1 {[%clk 0:00:05]}  Nf4 {[%clk 0:00:13]} 42. Ne6 {[%clk 0:00:04]}  Rg2# {[%clk 0:00:12]} 0-1


[Site "https://www.chess.com"]

[Event "Titled Tuesday Blitz September 27 Late 2022"]
[White "Alexikov, Alexander"]
[Black "Sharan, Rao"]
[WhiteFideId "14103958"]
[BlackFideId "5073464"]
[WhiteElo "2222"]
[BlackElo "2093"]
[Result "0-1"]
[Round "09"]
[TimeControl "180+1"]
[Date "2022.09.28"]
[WhiteClock "0:00:02"]
[BlackClock "0:00:02"]

1. e4 {[%clk 0:03:00]}  e6 {[%clk 0:02:57]} 2. d4 {[%clk 0:02:59]}  d5 {[%clk 0:02:57]} 3. Nc3 {[%clk 0:02:59]}  Nf6 {[%clk 0:02:57]} 4. exd5 {[%clk 0:02:58]}  exd5 {[%clk 0:02:56]} 5. Bg5 {[%clk 0:02:56]}  Be7 {[%clk 0:02:56]} 6. Bd3 {[%clk 0:02:56]}  O-O {[%clk 0:02:54]} 7. h3 {[%clk 0:02:55]}  c6 {[%clk 0:02:52]} 8. Nf3 {[%clk 0:02:54]}  Nbd7 {[%clk 0:02:51]} 9. O-O {[%clk 0:02:53]}  Qc7 {[%clk 0:02:48]} 10. Re1 {[%clk 0:02:51]}  Bd6 {[%clk 0:02:49]} 11. Qd2 {[%clk 0:02:43]}  b5 {[%clk 0:02:45]} 12. a3 {[%clk 0:02:42]}  Bb7 {[%clk 0:02:43]} 13. Re2 {[%clk 0:02:24]}  Rfe8 {[%clk 0:02:40]} 14. Rae1 {[%clk 0:02:22]}  a5 {[%clk 0:02:33]} 15. Kh1 {[%clk 0:01:51]}  b4 {[%clk 0:02:30]} 16. axb4 {[%clk 0:01:48]}  axb4 {[%clk 0:02:31]} 17. Nb1 {[%clk 0:01:38]}  c5 {[%clk 0:02:23]} 18. dxc5 {[%clk 0:01:32]}  Bxc5 {[%clk 0:02:17]} 19. Rxe8+ {[%clk 0:01:22]}  Rxe8 {[%clk 0:02:18]} 20. Rxe8+ {[%clk 0:01:18]}  Nxe8 {[%clk 0:02:19]} 21. Bf4 {[%clk 0:01:16]}  Qb6 {[%clk 0:02:12]} 22. Qe2 {[%clk 0:01:15]}  Nef6 {[%clk 0:02:04]} 23. Nbd2 {[%clk 0:01:13]}  Bxf2 {[%clk 0:01:57]} 24. Ne5 {[%clk 0:01:05]}  Nf8 {[%clk 0:01:46]} 25. Ndf3 {[%clk 0:01:01]}  Ne6 {[%clk 0:01:41]} 26. Bh2 {[%clk 0:00:59]}  Qe3 {[%clk 0:01:39]} 27. Qd1 {[%clk 0:00:57]}  g6 {[%clk 0:01:26]} 28. Qf1 {[%clk 0:00:50]}  Ne4 {[%clk 0:01:21]} 29. Ng4 {[%clk 0:00:44]}  Qc5 {[%clk 0:01:02]} 30. Nfe5 {[%clk 0:00:32]}  f5 {[%clk 0:00:47]} 31. Bxe4 {[%clk 0:00:29]}  fxg4 {[%clk 0:00:47]} 32. Nxg4 {[%clk 0:00:22]}  dxe4 {[%clk 0:00:42]} 33. Qxf2 {[%clk 0:00:21]}  Qxf2 {[%clk 0:00:41]} 34. Nxf2 {[%clk 0:00:20]}  e3 {[%clk 0:00:30]} 35. Nd3 {[%clk 0:00:19]}  e2 {[%clk 0:00:17]} 36. Kg1 {[%clk 0:00:15]}  Nd4 {[%clk 0:00:18]} 37. Ne1 {[%clk 0:00:13]}  b3 {[%clk 0:00:16]} 38. cxb3 {[%clk 0:00:11]}  Nxb3 {[%clk 0:00:17]} 39. Kf2 {[%clk 0:00:11]}  Nc1 {[%clk 0:00:14]} 40. Bf4 {[%clk 0:00:09]}  Nb3 {[%clk 0:00:07]} 41. Kxe2 {[%clk 0:00:09]}  Kf7 {[%clk 0:00:07]} 42. g3 {[%clk 0:00:08]}  Ke6 {[%clk 0:00:07]} 43. h4 {[%clk 0:00:07]}  Kf5 {[%clk 0:00:07]} 44. Kd3 {[%clk 0:00:06]}  Kg4 {[%clk 0:00:06]} 45. Kc4 {[%clk 0:00:05]}  Na5+ {[%clk 0:00:05]} 46. Kb5 {[%clk 0:00:05]}  Nb3 {[%clk 0:00:05]} 47. Kc4 {[%clk 0:00:03]}  Na5+ {[%clk 0:00:05]} 48. Kc3 {[%clk 0:00:04]}  Bc6 {[%clk 0:00:03]} 49. b4 {[%clk 0:00:03]}  Nb7 {[%clk 0:00:04]} 50. Kc4 {[%clk 0:00:02]}  Nd8 {[%clk 0:00:02]} 51. b5 {[%clk 0:00:02]}  Bb7 {[%clk 0:00:02]} 52. Nd3 {[%clk 0:00:02]}  Ne6 {[%clk 0:00:02]} 53. Bd6 {[%clk 0:00:02]}  g5 {[%clk 0:00:02]} 0-1


[Site "https://www.chess.com"]